[Event "*** SCC Grand Prix: Titled Tuesday Blitz"]
[Site "Chess.com"]
[Date "2020.08.25"]
[Round "1"]
[White "Rodalquilar"]
[Black "davigator"]
[Result "1/2-1/2"]
[WhiteElo "2629"]
[BlackElo "2311"]
[TimeControl "180+1"]
[EndTime "10:07:31 PDT"]
[Termination "Game drawn by repetition"]

1. d4 {[%clk 0:03:00.7]} 1... Nf6 {[%clk 0:02:57.9]} 2. Bf4 {[%clk 0:03:00.8]}
2... c5 {[%clk 0:02:56.3]} 3. e3 {[%clk 0:03:00.4]} 3... d5 {[%clk 0:02:55.4]}
4. Nf3 {[%clk 0:02:59.4]} 4... Bf5 {[%clk 0:02:54.6]} 5. dxc5 {[%clk 0:02:48.2]}
5... Qa5+ {[%clk 0:02:50.9]} 6. Nc3 {[%clk 0:02:48.4]} 6... Qxc5 {[%clk
0:02:50.7]} 7. Nb5 {[%clk 0:02:39.3]} 7... Na6 {[%clk 0:02:49.8]} 8. c3 {[%clk
0:02:38.9]} 8... Ne4 {[%clk 0:02:39.2]} 9. Be2 {[%clk 0:02:17.5]} 9... f6 {[%clk
0:02:38.6]} 10. h3 {[%clk 0:02:17.9]} 10... e5 {[%clk 0:02:37.8]} 11. Bh2 {[%clk
0:02:18.2]} 11... Be7 {[%clk 0:02:37.3]} 12. O-O {[%clk 0:02:15.7]} 12... O-O
{[%clk 0:02:36.4]} 13. b4 {[%clk 0:02:15.9]} 13... Qc6 {[%clk 0:02:32.9]} 14.
Qb3 {[%clk 0:01:42.5]} 14... Be6 {[%clk 0:02:30.9]} 15. Rfd1 {[%clk 0:01:10.8]}
15... Rfd8 {[%clk 0:02:23.9]} 16. Nbd4 {[%clk 0:00:47.7]} 16... exd4 {[%clk
0:02:22.4]} 17. b5 {[%clk 0:00:48.2]} 17... Qxc3 {[%clk 0:02:18.2]} 18. bxa6
{[%clk 0:00:48.4]} 18... bxa6 {[%clk 0:01:48.9]} 19. Nxd4 {[%clk 0:00:47.6]}
19... Bf7 {[%clk 0:01:37.4]} 20. Bxa6 {[%clk 0:00:46.9]} 20... Qxb3 {[%clk
0:01:28.7]} 21. axb3 {[%clk 0:00:45.9]} 21... Nc5 {[%clk 0:01:23.9]} 22. Bb5
{[%clk 0:00:44.3]} 22... a6 {[%clk 0:01:11.1]} 23. Be2 {[%clk 0:00:39.1]} 23...
Bd6 {[%clk 0:01:06.3]} 24. b4 {[%clk 0:00:35.3]} 24... Bxh2+ {[%clk 0:01:05.4]}
25. Kxh2 {[%clk 0:00:36.2]} 25... Ne4 {[%clk 0:01:00.8]} 26. Bxa6 {[%clk
0:00:35.4]} 26... Nxf2 {[%clk 0:00:58.4]} 27. Rdc1 {[%clk 0:00:31.3]} 27... g6
{[%clk 0:00:50.7]} 28. b5 {[%clk 0:00:31.5]} 28... Nd3 {[%clk 0:00:47.2]} 29.
Rc6 {[%clk 0:00:17.8]} 29... Nb4 {[%clk 0:00:47]} 30. Rxf6 {[%clk 0:00:17.9]}
30... Kg7 {[%clk 0:00:46.9]} 31. Raf1 {[%clk 0:00:18]} 31... Rd7 {[%clk
0:00:40.5]} 32. Nc6 {[%clk 0:00:10]} 32... Nxa6 {[%clk 0:00:33.6]} 33. Ne5
{[%clk 0:00:09.9]} 33... Re7 {[%clk 0:00:25.2]} 34. Rxf7+ {[%clk 0:00:09.7]}
34... Rxf7 {[%clk 0:00:25.2]} 35. Rxf7+ {[%clk 0:00:10.6]} 35... Kg8 {[%clk
0:00:25.8]} 36. bxa6 {[%clk 0:00:11.3]} 36... Rxa6 {[%clk 0:00:26.1]} 37. Rd7
{[%clk 0:00:11.3]} 37... Ra3 {[%clk 0:00:22.9]} 38. Ng4 {[%clk 0:00:11.6]} 38...
h5 {[%clk 0:00:20.5]} 39. Nf6+ {[%clk 0:00:12.1]} 39... Kf8 {[%clk 0:00:20.8]}
40. Nxd5 {[%clk 0:00:12.8]} 40... Rd3 {[%clk 0:00:18.6]} 41. e4 {[%clk
0:00:12.5]} 41... Rd2 {[%clk 0:00:17.4]} 42. e5 {[%clk 0:00:12.1]} 42... Re2
{[%clk 0:00:17.7]} 43. Re7 {[%clk 0:00:11.6]} 43... Rd2 {[%clk 0:00:17.1]} 44.
Rd7 {[%clk 0:00:12.1]} 44... Re2 {[%clk 0:00:16.3]} 45. Rd8+ {[%clk 0:00:10.1]}
45... Kf7 {[%clk 0:00:15.4]} 46. Rd7+ {[%clk 0:00:10.6]} 46... Kf8 {[%clk
0:00:15.2]} 1/2-1/2

[Event "*** SCC Grand Prix: Titled Tuesday Blitz"]
[Site "Chess.com"]
[Date "2020.08.25"]
[Round "1"]
[White "David_Paravyan"]
[Black "profofchess"]
[Result "1-0"]
[WhiteElo "2975"]
[BlackElo "2449"]
[TimeControl "180+1"]
[EndTime "10:07:32 PDT"]
[Termination "David_Paravyan won by resignation"]

1. d4 {[%clk 0:02:56.6]} 1... Nf6 {[%clk 0:02:59.6]} 2. c4 {[%clk 0:02:56.3]}
2... e6 {[%clk 0:03:00]} 3. Nf3 {[%clk 0:02:53.9]} 3... c5 {[%clk 0:02:59.6]} 4.
g3 {[%clk 0:02:51]} 4... cxd4 {[%clk 0:02:58.9]} 5. Nxd4 {[%clk 0:02:51.9]} 5...
d5 {[%clk 0:02:59.3]} 6. Bg2 {[%clk 0:02:52.4]} 6... e5 {[%clk 0:02:59.4]} 7.
Nf3 {[%clk 0:02:52.9]} 7... d4 {[%clk 0:02:59.9]} 8. O-O {[%clk 0:02:52.9]} 8...
Nc6 {[%clk 0:02:59.1]} 9. e3 {[%clk 0:02:53.5]} 9... Be7 {[%clk 0:02:54]} 10.
exd4 {[%clk 0:02:53.4]} 10... exd4 {[%clk 0:02:54.6]} 11. b4 {[%clk 0:02:54]}
11... Bxb4 {[%clk 0:02:37.3]} 12. Nxd4 {[%clk 0:02:53.3]} 12... O-O {[%clk
0:02:26.9]} 13. Bxc6 {[%clk 0:02:32.2]} 13... bxc6 {[%clk 0:02:18.2]} 14. Nxc6
{[%clk 0:02:33.1]} 14... Qxd1 {[%clk 0:01:52.4]} 15. Rxd1 {[%clk 0:02:34]} 15...
Bc5 {[%clk 0:01:52.7]} 16. Ba3 {[%clk 0:02:30.9]} 16... Bxa3 {[%clk 0:01:45]}
17. Nxa3 {[%clk 0:02:31.8]} 17... Bb7 {[%clk 0:01:37.9]} 18. Ne7+ {[%clk
0:02:11]} 18... Kh8 {[%clk 0:01:37.6]} 19. Nb5 {[%clk 0:02:11.9]} 19... Rae8
{[%clk 0:01:16.9]} 20. Re1 {[%clk 0:02:01]} 20... Be4 {[%clk 0:01:16]} 21. Nd5
{[%clk 0:01:34.1]} 21... Bxd5 {[%clk 0:00:25.3]} 22. cxd5 {[%clk 0:01:33.4]}
22... Rxe1+ {[%clk 0:00:20.5]} 23. Rxe1 {[%clk 0:01:33]} 23... Nxd5 {[%clk
0:00:11.4]} 24. Rd1 {[%clk 0:01:33.2]} 24... Nb4 {[%clk 0:00:09.7]} 25. a3
{[%clk 0:01:33.3]} 25... Nc6 {[%clk 0:00:07.4]} 26. Rc1 {[%clk 0:01:27.8]} 26...
a6 {[%clk 0:00:07.3]} 27. Rxc6 {[%clk 0:01:09.7]} 27... axb5 {[%clk 0:00:07.2]}
28. Rb6 {[%clk 0:01:10.5]} 28... Ra8 {[%clk 0:00:07.3]} 29. Rxb5 {[%clk
0:01:11.1]} 29... g6 {[%clk 0:00:07.2]} 30. Rb3 {[%clk 0:01:11.7]} 30... Kg7
{[%clk 0:00:07.2]} 31. h4 {[%clk 0:01:10.9]} 31... h5 {[%clk 0:00:07.4]} 32. Kf1
{[%clk 0:01:11.4]} 32... Ra4 {[%clk 0:00:05]} 33. Ke2 {[%clk 0:01:11.6]} 33...
f6 {[%clk 0:00:02.8]} 34. Kd2 {[%clk 0:01:12]} 34... g5 {[%clk 0:00:03.2]} 35.
hxg5 {[%clk 0:01:05.9]} 35... fxg5 {[%clk 0:00:04.1]} 36. Kc3 {[%clk 0:01:06.3]}
36... h4 {[%clk 0:00:04.3]} 37. gxh4 {[%clk 0:01:06.8]} 37... gxh4 {[%clk
0:00:04.7]} 38. Kb2 {[%clk 0:01:07.4]} 38... Kg6 {[%clk 0:00:04.3]} 39. Rb8
{[%clk 0:00:19.5]} 39... Kg5 {[%clk 0:00:04.2]} 40. Kb3 {[%clk 0:00:20.2]} 40...
Ra7 {[%clk 0:00:04]} 41. Rh8 {[%clk 0:00:17.6]} 41... Kg4 {[%clk 0:00:04]} 42.
a4 {[%clk 0:00:18.3]} 42... Ra5 {[%clk 0:00:03.3]} 43. Kb4 {[%clk 0:00:17.5]}
43... Rc5 {[%clk 0:00:02.1]} 44. Kxc5 {[%clk 0:00:17.2]} 1-0

[Event "*** SCC Grand Prix: Titled Tuesday Blitz"]
[Site "Chess.com"]
[Date "2020.08.25"]
[Round "1"]
[White "CraiggoryC"]
[Black "Unkreativ3"]
[Result "1-0"]
[WhiteElo "2132"]
[BlackElo "2410"]
[TimeControl "180+1"]
[EndTime "10:07:32 PDT"]
[Termination "CraiggoryC won by checkmate"]

1. e4 {[%clk 0:03:00.9]} 1... c5 {[%clk 0:02:59.4]} 2. Nc3 {[%clk 0:02:59.8]}
2... Nc6 {[%clk 0:02:59.5]} 3. Bb5 {[%clk 0:03:00.3]} 3... g6 {[%clk 0:02:59.7]}
4. Bxc6 {[%clk 0:02:59.4]} 4... bxc6 {[%clk 0:03:00.6]} 5. f4 {[%clk 0:02:59.8]}
5... Bg7 {[%clk 0:03:00.9]} 6. Nf3 {[%clk 0:02:59.8]} 6... Nf6 {[%clk
0:03:00.9]} 7. O-O {[%clk 0:02:59.7]} 7... O-O {[%clk 0:03:01.2]} 8. d3 {[%clk
0:03:00.3]} 8... d6 {[%clk 0:03:00.5]} 9. Qe1 {[%clk 0:03:00.1]} 9... Rb8 {[%clk
0:03:00.8]} 10. b3 {[%clk 0:02:55.4]} 10... Qa5 {[%clk 0:02:56.1]} 11. Bd2
{[%clk 0:02:55.3]} 11... Qc7 {[%clk 0:02:55.1]} 12. Qh4 {[%clk 0:02:50.8]} 12...
Nd7 {[%clk 0:02:53.7]} 13. f5 {[%clk 0:02:40.7]} 13... f6 {[%clk 0:02:51.1]} 14.
fxg6 {[%clk 0:02:24.5]} 14... hxg6 {[%clk 0:02:52]} 15. Bh6 {[%clk 0:02:24.7]}
15... Nb6 {[%clk 0:02:44.9]} 16. Rf2 {[%clk 0:02:11.5]} 16... Be6 {[%clk
0:02:42.5]} 17. Raf1 {[%clk 0:02:07.4]} 17... Bf7 {[%clk 0:02:35.9]} 18. Ne2
{[%clk 0:01:44]} 18... Nd7 {[%clk 0:02:27.1]} 19. Ng3 {[%clk 0:01:32.5]} 19...
Ne5 {[%clk 0:02:08.7]} 20. Nxe5 {[%clk 0:01:20.1]} 20... fxe5 {[%clk 0:02:03]}
21. Nf5 {[%clk 0:01:18.7]} 21... Bf6 {[%clk 0:01:52.8]} 22. Qg3 {[%clk
0:00:57.3]} 22... Rfc8 {[%clk 0:01:34.6]} 23. Bg5 {[%clk 0:00:57.3]} 23... gxf5
{[%clk 0:01:05.2]} 24. Bxf6+ {[%clk 0:00:52.4]} 24... Kf8 {[%clk 0:01:04.3]} 25.
Qg7+ {[%clk 0:00:33.1]} 25... Ke8 {[%clk 0:01:04]} 26. Rxf5 {[%clk 0:00:22.5]}
26... Be6 {[%clk 0:00:37.6]} 27. Rh5 {[%clk 0:00:10.4]} 27... Rd8 {[%clk
0:00:20.2]} 28. Rh8+ {[%clk 0:00:05]} 28... Kd7 {[%clk 0:00:21.1]} 29. Qxe7+
{[%clk 0:00:04.8]} 29... Kc8 {[%clk 0:00:21.3]} 30. Qxe6+ {[%clk 0:00:05.3]}
30... Kb7 {[%clk 0:00:21.4]} 31. Rxd8 {[%clk 0:00:04.6]} 31... Rxd8 {[%clk
0:00:22.3]} 32. Bxd8 {[%clk 0:00:04.1]} 32... Qxd8 {[%clk 0:00:22.9]} 33. Rf7+
{[%clk 0:00:04.6]} 33... Kb6 {[%clk 0:00:22.9]} 34. Rd7 {[%clk 0:00:04.4]} 34...
Qh4 {[%clk 0:00:19.3]} 35. g3 {[%clk 0:00:03.5]} 35... Qh6 {[%clk 0:00:18.8]}
36. Qxh6 {[%clk 0:00:03]} 36... a5 {[%clk 0:00:18]} 37. Qxd6 {[%clk 0:00:03.5]}
37... Kb5 {[%clk 0:00:18.9]} 38. Rc7 {[%clk 0:00:03.9]} 38... Kb4 {[%clk
0:00:19.7]} 39. Rxc6 {[%clk 0:00:04.8]} 39... Ka3 {[%clk 0:00:18.2]} 40. Qxc5+
{[%clk 0:00:05.7]} 40... Kb2 {[%clk 0:00:19.1]} 41. Qxa5 {[%clk 0:00:05.5]}
41... Ka1 {[%clk 0:00:19.4]} 42. b4 {[%clk 0:00:04.8]} 42... Kb2 {[%clk
0:00:20.3]} 43. b5 {[%clk 0:00:05.7]} 43... Ka1 {[%clk 0:00:20.6]} 44. b6 {[%clk
0:00:06.6]} 44... Kb1 {[%clk 0:00:20.5]} 45. b7 {[%clk 0:00:07.5]} 45... Ka1
{[%clk 0:00:21.4]} 46. Qxe5+ {[%clk 0:00:08.1]} 46... Kxa2 {[%clk 0:00:21]} 47.
b8=Q {[%clk 0:00:07.7]} 47... Ka3 {[%clk 0:00:21]} 48. Ra6# {[%clk 0:00:08.4]}
1-0

[Event "*** SCC Grand Prix: Titled Tuesday Blitz"]
[Site "Chess.com"]
[Date "2020.08.25"]
[Round "1"]
[White "Shield12"]
[Black "Barmen_EV"]
[Result "1-0"]
[WhiteElo "2858"]
[BlackElo "2424"]
[TimeControl "180+1"]
[EndTime "10:07:33 PDT"]
[Termination "Shield12 won on time"]

1. e4 {[%clk 0:03:00.9]} 1... c5 {[%clk 0:02:59.6]} 2. Nf3 {[%clk 0:03:00.7]}
2... Nc6 {[%clk 0:03:00.5]} 3. Bb5 {[%clk 0:03:00.3]} 3... e6 {[%clk 0:03:00.1]}
4. Bxc6 {[%clk 0:03:00.1]} 4... bxc6 {[%clk 0:03:01]} 5. d3 {[%clk 0:03:01]}
5... Ne7 {[%clk 0:03:01.2]} 6. Qe2 {[%clk 0:03:00.3]} 6... Ng6 {[%clk
0:03:00.7]} 7. h4 {[%clk 0:02:59.4]} 7... h5 {[%clk 0:03:00.4]} 8. e5 {[%clk
0:02:58.9]} 8... Be7 {[%clk 0:02:58.4]} 9. Nc3 {[%clk 0:02:51.8]} 9... f6 {[%clk
0:02:52.4]} 10. Qe4 {[%clk 0:02:49.5]} 10... Kf7 {[%clk 0:02:50.8]} 11. Bd2
{[%clk 0:02:42.1]} 11... d5 {[%clk 0:02:27.3]} 12. exd6 {[%clk 0:02:40.4]} 12...
Qxd6 {[%clk 0:02:27.6]} 13. Qc4 {[%clk 0:02:27.6]} 13... a5 {[%clk 0:02:20.9]}
14. O-O-O {[%clk 0:02:22.8]} 14... Ba6 {[%clk 0:02:20.4]} 15. Qe4 {[%clk
0:02:21.6]} 15... e5 {[%clk 0:02:11.7]} 16. Rhe1 {[%clk 0:02:16.4]} 16... Rab8
{[%clk 0:01:58.8]} 17. Qf5 {[%clk 0:02:13.6]} 17... Bc8 {[%clk 0:01:12.1]} 18.
Ng5+ {[%clk 0:02:10.9]} 18... Kg8 {[%clk 0:01:12.3]} 19. Qxg6 {[%clk 0:02:09]}
19... fxg5 {[%clk 0:01:13.2]} 20. Qxd6 {[%clk 0:01:58]} 20... Bxd6 {[%clk
0:01:14.1]} 21. Bxg5 {[%clk 0:01:58.7]} 21... Bg4 {[%clk 0:01:12.6]} 22. f3
{[%clk 0:01:58.7]} 22... Bf5 {[%clk 0:01:13.5]} 23. Ne4 {[%clk 0:01:53]} 23...
Bf8 {[%clk 0:01:13.6]} 24. Be3 {[%clk 0:01:50.8]} 24... c4 {[%clk 0:01:12.6]}
25. dxc4 {[%clk 0:01:49.4]} 25... Kf7 {[%clk 0:01:13.5]} 26. Bg5 {[%clk
0:01:43.4]} 26... Bb4 {[%clk 0:01:08.4]} 27. c3 {[%clk 0:01:41]} 27... Be7
{[%clk 0:01:09.3]} 28. Nd6+ {[%clk 0:01:29.2]} 28... Bxd6 {[%clk 0:01:08.6]} 29.
Rxd6 {[%clk 0:01:30.1]} 29... Rhe8 {[%clk 0:00:57.1]} 30. Rxc6 {[%clk
0:01:28.9]} 30... a4 {[%clk 0:00:54.9]} 31. Rc5 {[%clk 0:01:25.7]} 31... Rec8
{[%clk 0:00:47.1]} 32. Rexe5 {[%clk 0:01:21.6]} 32... g6 {[%clk 0:00:46.6]} 33.
Rxc8 {[%clk 0:01:17.7]} 33... Rxc8 {[%clk 0:00:46.1]} 34. b3 {[%clk 0:01:17.6]}
34... axb3 {[%clk 0:00:47]} 35. axb3 {[%clk 0:01:18.5]} 35... Ra8 {[%clk
0:00:47.2]} 36. Kb2 {[%clk 0:01:18.3]} 36... Rb8 {[%clk 0:00:47.4]} 37. b4
{[%clk 0:01:18.4]} 37... Bd3 {[%clk 0:00:46.8]} 38. Kb3 {[%clk 0:01:17.7]} 38...
Bf1 {[%clk 0:00:47.7]} 39. b5 {[%clk 0:01:14.3]} 39... Bxg2 {[%clk 0:00:47.3]}
40. Kb4 {[%clk 0:01:12.9]} 40... Bxf3 {[%clk 0:00:46.9]} 41. c5 {[%clk
0:01:13.3]} 41... Bc6 {[%clk 0:00:45.4]} 42. c4 {[%clk 0:01:13.2]} 42... Be8
{[%clk 0:00:42.7]} 43. Re7+ {[%clk 0:01:12]} 43... Kf8 {[%clk 0:00:42.8]} 44.
Rc7 {[%clk 0:01:11.3]} 44... Ra8 {[%clk 0:00:36.3]} 45. c6 {[%clk 0:01:10.4]}
45... Ra1 {[%clk 0:00:37.2]} 46. Kc5 {[%clk 0:01:08.9]} 46... Rb1 {[%clk
0:00:38.1]} 47. b6 {[%clk 0:01:08.5]} 47... Rb3 {[%clk 0:00:28.8]} 48. b7 {[%clk
0:01:07.9]} 48... Rb2 {[%clk 0:00:29.7]} 49. Rc8 {[%clk 0:01:07.5]} 49... Kf7
{[%clk 0:00:30.2]} 50. b8=Q {[%clk 0:01:07.2]} 50... Rxb8 {[%clk 0:00:31.1]} 51.
Rxb8 {[%clk 0:01:08.1]} 51... Bxc6 {[%clk 0:00:31.3]} 52. Kxc6 {[%clk
0:01:08.9]} 52... Ke6 {[%clk 0:00:32.2]} 53. c5 {[%clk 0:01:07.1]} 53... Kf5
{[%clk 0:00:33.1]} 54. Kd5 {[%clk 0:01:07.1]} 54... Kg4 {[%clk 0:00:34]} 55. c6
{[%clk 0:01:07.6]} 55... Kf5 {[%clk 0:00:34.9]} 56. c7 {[%clk 0:01:08.5]} 56...
Kg4 {[%clk 0:00:35.7]} 57. c8=Q+ {[%clk 0:01:08.9]} 57... Kg3 {[%clk 0:00:36.6]}
58. Rb3+ {[%clk 0:01:08.7]} 58... Kf2 {[%clk 0:00:01.8]} 59. Qc2+ {[%clk
0:01:09.6]} 1-0

[Event "*** SCC Grand Prix: Titled Tuesday Blitz"]
[Site "Chess.com"]
[Date "2020.08.25"]
[Round "1"]
[White "poppy73"]
[Black "JesseKraai"]
[Result "0-1"]
[WhiteElo "2234"]
[BlackElo "2559"]
[TimeControl "180+1"]
[EndTime "10:07:33 PDT"]
[Termination "JesseKraai won on time"]

1. e4 {[%clk 0:03:00.9]} 1... d6 {[%clk 0:02:48.6]} 2. d4 {[%clk 0:03:00]} 2...
Nf6 {[%clk 0:02:43.7]} 3. Nc3 {[%clk 0:02:59.9]} 3... e5 {[%clk 0:02:43.7]} 4.
Nf3 {[%clk 0:02:55.5]} 4... Nbd7 {[%clk 0:02:42.8]} 5. Bc4 {[%clk 0:02:54.1]}
5... Be7 {[%clk 0:02:43.1]} 6. O-O {[%clk 0:02:52.7]} 6... c6 {[%clk 0:02:43.4]}
7. a4 {[%clk 0:02:49.4]} 7... O-O {[%clk 0:02:42.5]} 8. Re1 {[%clk 0:02:48.3]}
8... Qc7 {[%clk 0:02:42.7]} 9. h3 {[%clk 0:02:47.6]} 9... b6 {[%clk 0:02:42.2]}
10. d5 {[%clk 0:02:24.8]} 10... Bb7 {[%clk 0:02:39.5]} 11. dxc6 {[%clk
0:02:20.1]} 11... Bxc6 {[%clk 0:02:39.3]} 12. Bb3 {[%clk 0:02:15.1]} 12... Qb7
{[%clk 0:02:30.8]} 13. Nd5 {[%clk 0:02:02.2]} 13... Bxd5 {[%clk 0:02:29.2]} 14.
exd5 {[%clk 0:02:01]} 14... Nc5 {[%clk 0:02:26.4]} 15. c4 {[%clk 0:01:59.2]}
15... Nfd7 {[%clk 0:02:16.2]} 16. Bc2 {[%clk 0:01:51.2]} 16... a5 {[%clk
0:02:16]} 17. b3 {[%clk 0:01:06.4]} 17... Bf6 {[%clk 0:01:59.9]} 18. Bb2 {[%clk
0:01:05.4]} 18... g6 {[%clk 0:01:59.3]} 19. Nd2 {[%clk 0:01:02.2]} 19... Bg7
{[%clk 0:01:58.3]} 20. Nb1 {[%clk 0:00:56.2]} 20... f5 {[%clk 0:01:54.7]} 21.
Na3 {[%clk 0:00:54.7]} 21... Rae8 {[%clk 0:01:51.3]} 22. Nb5 {[%clk 0:00:54.4]}
22... Qb8 {[%clk 0:01:51.5]} 23. Qd2 {[%clk 0:00:50]} 23... Nf6 {[%clk
0:01:31.6]} 24. f3 {[%clk 0:00:42.6]} 24... Nh5 {[%clk 0:01:26.5]} 25. b4 {[%clk
0:00:38.7]} 25... axb4 {[%clk 0:01:25]} 26. Qxb4 {[%clk 0:00:39.6]} 26... Nf4
{[%clk 0:01:21.8]} 27. a5 {[%clk 0:00:36.8]} 27... Nfd3 {[%clk 0:01:19.9]} 28.
Bxd3 {[%clk 0:00:30.2]} 28... Nxd3 {[%clk 0:01:19.8]} 29. Qxd6 {[%clk
0:00:25.4]} 29... Nxb2 {[%clk 0:01:14]} 30. Qxb8 {[%clk 0:00:08.9]} 30... Rxb8
{[%clk 0:01:13]} 31. a6 {[%clk 0:00:06.6]} 31... Nd3 {[%clk 0:01:07.8]} 32. a7
{[%clk 0:00:05.3]} 32... Ra8 {[%clk 0:01:06.4]} 33. Red1 {[%clk 0:00:04.2]}
33... e4 {[%clk 0:01:06]} 34. Ra2 {[%clk 0:00:02.2]} 34... Rf7 {[%clk
0:01:03.5]} 35. d6 {[%clk 0:00:02]} 35... Rb7 {[%clk 0:00:57.7]} 36. Nc7 {[%clk
0:00:02.5]} 36... Raxa7 {[%clk 0:00:56.5]} 37. Rxa7 {[%clk 0:00:03.4]} 37...
Rxa7 {[%clk 0:00:56.9]} 38. d7 {[%clk 0:00:03.7]} 38... Bd4+ {[%clk 0:00:56.2]}
39. Kh1 {[%clk 0:00:02.7]} 39... Bf6 {[%clk 0:00:56.4]} 40. Nd5 {[%clk
0:00:01.9]} 40... Bd8 {[%clk 0:00:56]} 41. Rb1 {[%clk 0:00:01.9]} 41... Kf7
{[%clk 0:00:54.8]} 42. Rb5 {[%clk 0:00:01.7]} 42... Ke6 {[%clk 0:00:52.1]} 43.
Nxb6 {[%clk 0:00:02.3]} 43... Bxb6 {[%clk 0:00:51]} 44. Rxb6+ {[%clk 0:00:02.4]}
44... Kxd7 {[%clk 0:00:51.7]} 45. Rf6 {[%clk 0:00:02.2]} 45... e3 {[%clk
0:00:49.7]} 46. Rf7+ {[%clk 0:00:01.8]} 46... Ke6 {[%clk 0:00:45.6]} 47. Rxa7
{[%clk 0:00:02.6]} 47... e2 {[%clk 0:00:45.7]} 48. Ra1 {[%clk 0:00:03.2]} 48...
Nf2+ {[%clk 0:00:39.6]} 49. Kg1 {[%clk 0:00:02.4]} 49... Nd1 {[%clk 0:00:39.8]}
0-1

[Event "*** SCC Grand Prix: Titled Tuesday Blitz"]
[Site "Chess.com"]
[Date "2020.08.25"]
[Round "1"]
[White "salimalamri2020"]
[Black "aNaartjieZA"]
[Result "0-1"]
[WhiteElo "2038"]
[BlackElo "2478"]
[TimeControl "180+1"]
[EndTime "10:07:33 PDT"]
[Termination "aNaartjieZA won by resignation"]

1. e4 {[%clk 0:03:00.9]} 1... e6 {[%clk 0:02:59.8]} 2. d4 {[%clk 0:03:00.6]}
2... d5 {[%clk 0:03:00]} 3. Nc3 {[%clk 0:03:00.9]} 3... Bb4 {[%clk 0:02:59.7]}
4. e5 {[%clk 0:02:59]} 4... c5 {[%clk 0:02:59.8]} 5. a3 {[%clk 0:02:59.3]} 5...
Bxc3+ {[%clk 0:02:59.6]} 6. bxc3 {[%clk 0:03:00.1]} 6... Ne7 {[%clk 0:03:00.2]}
7. Qg4 {[%clk 0:02:59.5]} 7... Qc7 {[%clk 0:03:00.1]} 8. Qxg7 {[%clk 0:02:58.6]}
8... Rg8 {[%clk 0:03:00]} 9. Qxh7 {[%clk 0:02:59.1]} 9... cxd4 {[%clk
0:03:00.4]} 10. Ne2 {[%clk 0:02:47.3]} 10... Nbc6 {[%clk 0:02:59.5]} 11. f4
{[%clk 0:02:45.8]} 11... dxc3 {[%clk 0:02:58.4]} 12. Qd3 {[%clk 0:02:43.7]}
12... d4 {[%clk 0:02:58.4]} 13. Rb1 {[%clk 0:02:33.8]} 13... b6 {[%clk
0:02:32.7]} 14. h4 {[%clk 0:02:26.7]} 14... Bb7 {[%clk 0:02:27.7]} 15. h5 {[%clk
0:02:25.3]} 15... O-O-O {[%clk 0:02:26.7]} 16. h6 {[%clk 0:02:23.4]} 16... Rh8
{[%clk 0:02:11.8]} 17. h7 {[%clk 0:02:21.4]} 17... Nf5 {[%clk 0:01:59.3]} 18. a4
{[%clk 0:02:11.9]} 18... Na5 {[%clk 0:01:51.9]} 19. Rg1 {[%clk 0:01:56.5]} 19...
Nc4 {[%clk 0:01:34.3]} 20. g4 {[%clk 0:01:53.3]} 20... Nfe3 {[%clk 0:01:33.5]}
21. Bxe3 {[%clk 0:01:51.6]} 21... dxe3 {[%clk 0:01:17.2]} 22. Qxc3 {[%clk
0:01:50.3]} 22... Nd2 {[%clk 0:01:16.1]} 23. Qxc7+ {[%clk 0:01:42.7]} 23... Kxc7
{[%clk 0:01:15.7]} 24. Bg2 {[%clk 0:01:15.2]} 24... Bxg2 {[%clk 0:01:10.4]} 25.
Rxg2 {[%clk 0:01:12.5]} 25... Nxb1 {[%clk 0:01:10.3]} 26. Rh2 {[%clk 0:01:11]}
26... Nd2 {[%clk 0:01:08.7]} 27. Rh3 {[%clk 0:01:08.1]} 27... Nc4 {[%clk
0:00:57.9]} 28. g5 {[%clk 0:01:06.2]} 28... Rd2 {[%clk 0:00:53.8]} 29. f5 {[%clk
0:00:59.2]} 29... exf5 {[%clk 0:00:42.8]} 30. e6 {[%clk 0:00:57.8]} 30... fxe6
{[%clk 0:00:43]} 31. g6 {[%clk 0:00:57.2]} 31... Rd7 {[%clk 0:00:42.3]} 32. Nf4
{[%clk 0:00:53.6]} 32... Kd6 {[%clk 0:00:41.2]} 33. Nh5 {[%clk 0:00:51.3]} 33...
Rdxh7 {[%clk 0:00:32.9]} 34. gxh7 {[%clk 0:00:49.9]} 34... Rxh7 {[%clk 0:00:33]}
35. Nf4 {[%clk 0:00:47.9]} 35... Rxh3 {[%clk 0:00:32.7]} 36. Nxh3 {[%clk
0:00:48.8]} 36... e5 {[%clk 0:00:28.9]} 37. Ke2 {[%clk 0:00:48]} 37... f4 {[%clk
0:00:29]} 38. Kd3 {[%clk 0:00:47.8]} 38... Kd5 {[%clk 0:00:28]} 39. Ng5 {[%clk
0:00:47.1]} 39... Nb2+ {[%clk 0:00:26.4]} 40. Ke2 {[%clk 0:00:46.2]} 40... Nxa4
{[%clk 0:00:26.3]} 41. Kf3 {[%clk 0:00:42.2]} 41... Nc3 {[%clk 0:00:25.3]} 42.
Nh3 {[%clk 0:00:38.6]} 42... a5 {[%clk 0:00:21.2]} 43. Ng5 {[%clk 0:00:36.3]}
43... a4 {[%clk 0:00:20.8]} 44. Kg4 {[%clk 0:00:34.4]} 44... e2 {[%clk
0:00:20.4]} 45. Nf3 {[%clk 0:00:34.7]} 45... e4 {[%clk 0:00:20.5]} 46. Ne1
{[%clk 0:00:33.7]} 46... f3 {[%clk 0:00:20.9]} 47. Kg3 {[%clk 0:00:33.5]} 47...
a3 {[%clk 0:00:21.3]} 0-1